bitfinex-derivatives/quotes_SOLF0:USTF0_20241216
["timestamp","ask_amount","ask_price","bid_price","bid_amount"]
[1734376206907,7.6701,220.42,220.27,4.414]
[1734376207107,20.87456456,220.39,220.19,20.87456456]
[1734376207312,20.87456456,220.39,220.2,4.6317]
[1734376208014,20.87456456,220.35,220.2,1.5917]
[1734376208215,3.04,220.34,220.2,1.5917]
[1734376208413,3.04,220.34,220.27,5.57085345]
[1734376208910,2.2684,220.32,220.27,5.57085345]
[1734376209115,3.04,220.34,220.27,5.57085345]
[1734376209421,3.04,220.34,220.29,2.2687]
[1734376210314,2.2683,220.33,220.29,2.2687]
[1734376210913,3.04,220.34,220.27,5.57085345]
[1734376211214,3.04,220.34,220.21,3.04]
[1734376211513,2.2688,220.29,220.2,1.5917]
[1734376211913,2.2688,220.28,220.22,2.2694]
[1734376212113,3.04,220.34,220.2,1.5917]
[1734376212509,1.4932,220.33,220.18,2.2697]
[1734376212717,20.87456456,220.31,220.18,2.2697]
[1734376212910,2.2692,220.24,220.22,5.35191522]
[1734376213211,3.04,220.28,220.15,3.04]
[1734376213413,20.87456456,220.27,220.13,1.4937]
[1734376214117,2.2698,220.19,220.13,3.764]
[1734376214609,2.2698,220.19,220.17,5.42219895]
[1734376215918,3.04,220.22,220.11,2.2705]
[1734376216118,3.04,220.22,220.12,1.5906]
[1734376216418,3.04,220.22,220.14,5.37130191]
[1734376216612,3.04,220.22,220.01,2.9477]
[1734376216613,3.04,220.22,220.03,20.87456456]
[1734376216814,20.87456456,220.19,220.07,5.57623438]
[1734376217010,2.2707,220.09,220.07,5.57623438]
[1734376217317,3.04,220.15,220.07,5.57623438]
[1734376221020,5.3101,220.15,220.09,2.2707]
[1734376221419,20.87456456,220.19,220.1,2.2706]
[1734376221715,3.06,220.19,220.07,5.57623438]
[1734376221914,3.06,220.19,220.12,2.2704]
[1734376222120,3.06,220.21,220.07,5.57623438]
[1734376222518,4.677,220.2,220.07,5.57623438]
[1734376222919,20.87456456,220.16,220.07,5.57623438]
[1734376223117,2.2706,220.11,220.07,5.57623438]
[1734376223818,3.06,220.15,220.07,5.57623438]
[1734376224020,2.2707,220.1,220.07,5.57623438]
[1734376224321,13.08105729,220.14,220.03,2.2713]
[1734376224518,2.2706,220.11,220.03,2.2713]
[1734376224823,13.08105729,220.11,220.01,2.9477]
[1734376225716,13.08105729,220.11,220.03,5.50432159]
[1734376226621,2.2707,220.1,220.05,2.2711]
[1734376226821,2.2707,220.1,220.03,5.50432159]
[1734376226822,13.08105729,220.14,220.03,5.50432159]
[1734376227120,16.14105729,220.14,220.03,5.50432159]
[1734376227316,16.14105729,220.14,220.04,2.2712]
[1734376227717,16.14105729,220.14,220.03,5.50432159]
[1734376228121,13.08105729,220.11,220.03,5.50432159]
[1734376228723,2.2708,220.08,220.03,5.50432159]
[1734376229024,3.06,220.14,220.03,5.50432159]
[1734376229025,3.06,220.13,220.03,5.50432159]
[1734376229626,13.08105729,220.14,220.03,5.50432159]
[1734376229817,16.14105729,220.14,220.03,5.50432159]
[1734376230123,13.08105729,220.11,220.03,5.50432159]
[1734376230323,2.271,220.07,220.03,5.50432159]
[1734376231025,13.08105729,220.11,220.03,5.50432159]
[1734376231617,2.2707,220.09,220.04,2.2712]
[1734376231918,13.08105729,220.11,220.03,5.50432159]
[1734376232119,3.06,220.14,220.03,5.50432159]
[1734376232120,16.14105729,220.14,220.03,5.50432159]
[1734376232317,16.14105729,220.14,220.05,2.271]
[1734376232516,13.08105729,220.14,220.03,5.50432159]
[1734376232721,13.08105729,220.14,220.05,2.271]
[1734376232722,2.2706,220.1,220.05,2.271]
[1734376232928,13.08105729,220.11,220.03,5.50432159]
[1734376233321,13.08105729,220.11,220.04,2.2711]
[1734376233617,13.08105729,220.11,220.03,5.50432159]
[1734376234119,2.2706,220.1,220.03,5.50432159]
[1734376234728,2.2706,220.1,220.07,2.2709]
[1734376234926,2.2705,220.11,220.07,2.2709]
[1734376235126,16.12105729,220.14,220.03,5.50432159]
[1734376235322,16.12105729,220.14,220.05,2.271]
[1734376235825,16.12105729,220.14,220.03,5.50432159]
[1734376236026,2.2707,220.09,220.03,5.50432159]
[1734376237428,2.2707,220.09,220.04,2.2711]
[1734376238026,3.04,220.12,220.03,5.50432159]
[1734376238027,2.2709,220.07,220.03,5.50432159]
[1734376239432,2.2708,220.08,220.03,5.50432159]
[1734376240135,13.08105729,220.14,220.03,5.50432159]
[1734376240433,16.12105729,220.14,220.03,5.50432159]
[1734376240630,3.04,220.14,220.03,18.58537888]
[1734376240830,2.2704,220.13,220.03,18.58537888]
[1734376241029,3.04,220.14,220.03,18.58537888]
[1734376241529,2.2706,220.13,220.07,2.2711]
[1734376241724,3.04,220.14,220.03,18.58537888]
[1734376242124,16.12105729,220.14,220.03,5.50432159]
[1734376242328,13.08105729,220.11,220.03,5.50432159]
[1734376242728,2.2712,220.07,220.03,5.50432159]
[1734376243436,2.2713,220.06,220.03,5.50432159]
[1734376245433,16.12105729,220.08,220.0,373.48018238]
[1734376245434,2.2715,220.04,220.0,373.48018238]
[1734376245629,16.12105729,220.08,220.0,373.48018238]
[1734376245932,13.08105729,220.05,220.0,373.48018238]
[1734376246131,13.08105729,220.05,220.0,245.87381707]
[1734376246338,13.08105729,220.02,220.0,245.87381707]
[1734376246732,16.12105729,220.02,220.0,245.87381707]
[1734376246931,16.12105729,220.02,220.0,141.1987516]
[1734376246932,2.2718,220.01,220.0,141.1987516]
[1734376247128,2.2718,220.01,220.0,132.7269516]
[1734376248231,2.2718,220.01,220.0,85.29837599]
[1734376248232,15.35285729,220.01,220.0,85.29837599]
[1734376248633,2.2718,220.01,220.0,85.29837599]
[1734376249535,15.35285729,220.01,220.0,85.29837599]
[1734376249729,2.2718,220.01,220.0,85.29837599]
[1734376249935,2.2724,219.96,219.87,7.63249488]
[1734376250134,16.14105729,219.95,219.89,2.2729]
[1734376250332,16.14105729,219.95,219.87,5.35939488]
[1734376250333,3.06,219.94,219.87,5.35939488]
[1734376251036,13.08105729,219.95,219.89,2.2729]
[1734376251231,13.08105729,219.95,219.87,5.35939488]
[1734376251232,13.08105729,219.92,219.87,5.35939488]
[1734376251430,3.06,219.95,219.87,5.35939488]
[1734376251431,16.14105729,219.95,219.87,5.35939488]
[1734376251640,3.06,219.95,219.87,5.35939488]
[1734376252230,3.06,219.95,219.9,2.2729]
[1734376253034,15.35325729,219.97,219.9,2.2729]
[1734376253235,3.06,219.96,219.9,2.2729]
[1734376253431,3.06,219.96,219.88,1.592]
[1734376253834,16.14105729,219.97,219.89,1.4691]
[1734376254039,18.41325729,219.97,219.91,2.2728]
[1734376254236,13.08105729,219.97,219.89,1.4691]
[1734376254540,16.14105729,219.97,219.89,1.4691]
[1734376254735,18.41325729,219.97,219.9,2.2728]
[1734376255148,18.41325729,219.97,219.89,1.4691]
[1734376255438,16.14105729,219.97,219.92,2.2727]
[1734376256442,5.3321,219.98,219.92,2.2727]
[1734376256940,5.3321,219.98,219.89,1.4691]
[1734376256941,3.06,219.98,219.93,2.2725]
[1734376257539,5.3321,219.98,219.92,2.2727]
[1734376258943,15.35295729,220.0,219.95,2.2724]
[1734376259145,3.06,219.99,219.89,1.4691]
[1734376259536,5.332,219.99,219.93,2.2725]
[1734376259742,3.06,219.99,219.89,1.4691]
[1734376260840,5.332,219.99,219.93,2.2725]
[1734376261741,2.2717,220.02,219.89,1.4691]
[1734376261941,13.08105729,220.06,219.91,13.08105729]
[1734376262141,3.06,220.05,219.94,13.08105729]
[1734376262641,3.06,220.05,219.96,2.2722]
[1734376262946,2.272,220.0,219.89,4.5291]
[1734376263146,13.08105729,220.03,219.89,4.5291]
[1734376263437,2.2718,220.02,219.91,13.08105729]
[1734376263646,13.08105729,220.03,219.94,2.2724]
[1734376263839,13.08105729,220.03,219.91,13.08105729]
[1734376264034,15.35275729,220.03,219.91,13.08105729]
[1734376264436,13.08105729,220.03,219.91,13.08105729]
[1734376264638,2.2717,220.02,219.91,13.08105729]
[1734376265046,2.2721,219.98,219.89,1.4691]
[1734376265242,13.08105729,219.97,219.89,1.4691]
[1734376265844,15.35325729,219.97,219.91,2.2728]
[1734376267343,2.2722,219.97,219.91,2.2728]
[1734376270246,2.2722,219.97,219.89,1.4691]
[1734376270247,2.2722,219.98,219.92,2.2727]
[1734376270550,3.04,219.99,219.89,1.4691]
[1734376271052,3.04,219.99,219.93,2.2726]
[1734376272252,5.3121,219.99,219.93,2.2726]
[1734376273055,6.72733507,220.1,219.93,13.08105729]
[1734376273253,6.72733507,220.1,219.96,13.08105729]
[1734376273254,1.38322,220.1,219.96,13.08105729]
[1734376273550,13.08105729,220.05,219.97,1.5255]
[1734376273748,2.2718,220.01,219.96,2.2722]
[1734376274145,13.08105729,220.05,219.9,16.13055729]
[1734376274346,2.272,219.99,219.94,2.2724]
[1734376275251,2.2719,220.0,219.94,2.2724]
[1734376275841,2.2721,219.98,219.92,2.2727]
[1734376276048,13.08105729,220.05,219.9,16.13055729]
[1734376276250,13.08105729,220.02,219.9,3.0495]
[1734376276446,3.04,220.01,219.91,2.2727]
[1734376276649,3.04,220.01,219.9,3.0495]
[1734376278052,3.04,220.01,219.9,16.13055729]
[1734376278551,2.2719,220.0,219.9,16.13055729]
[1734376278954,13.08105729,220.02,219.9,16.13055729]
[1734376279150,3.04,220.03,219.9,16.13055729]
[1734376279353,3.04,220.04,219.9,16.13055729]
[1734376280155,3.04,220.04,219.96,2.2722]
[1734376280156,2.2717,220.02,219.96,2.2722]
[1734376280958,2.2721,219.99,219.93,2.2726]
[1734376281155,13.08105729,220.02,219.93,2.2726]
[1734376281961,2.2722,219.97,219.93,2.2726]
[1734376282252,16.12105729,219.99,219.87,5.35939488]
[1734376282454,3.04,219.98,219.87,5.35939488]
[1734376283055,2.2724,219.95,219.9,2.2728]
[1734376283558,2.2724,219.95,219.91,2.2728]
[1734376284462,3.04,219.98,219.87,5.35939488]
[1734376284658,13.08105729,219.99,219.87,5.35939488]
[1734376284659,3.04,219.97,219.87,5.35939488]
[1734376285157,5.3123,219.97,219.9,2.2729]
[1734376285359,3.04,219.97,219.9,2.2729]
[1734376286255,3.04,219.97,219.93,2.2725]
[1734376286960,3.04,219.97,219.94,2.2725]
[1734376288060,2.2721,219.99,219.95,2.2724]
[1734376288563,3.04,220.03,219.9,13.08105729]
[1734376291063,11.07573399,220.04,219.95,2.2723]
[1734376291365,14.11573399,220.04,219.95,2.2723]
[1734376291663,14.11573399,220.04,219.9,13.08105729]
[1734376291862,11.07573399,220.04,219.93,13.08105729]
[1734376292062,3.04,220.07,219.94,1.5967]
[1734376292260,20.97621032,220.07,219.94,1.5967]
[1734376292460,13.08105729,220.05,219.94,1.5967]
[1734376292662,11.08350754,220.04,219.94,1.5967]
[1734376292958,2.2717,220.02,219.97,2.2721]
[1734376293965,13.08105729,220.05,219.94,1.5967]
[1734376295465,2.2716,220.03,219.94,1.5967]
[1734376295666,13.08105729,220.05,219.94,1.5967]
[1734376296064,2.2715,220.04,219.98,2.272]
[1734376296769,13.08105729,220.05,219.94,1.5967]
[1734376296960,3.04,220.07,219.88,3.133]
[1734376296961,13.08105729,220.02,219.88,3.133]
[1734376297168,13.08105729,219.99,219.88,4.6872]
[1734376297469,2.2725,219.94,219.89,2.2729]
[1734376298768,2.2724,219.95,219.89,2.2729]
[1734376298969,3.04,219.99,219.9,2.2729]
[1734376299374,2.2724,219.95,219.9,2.2729]
[1734376299665,14.12404493,219.99,219.9,2.2729]
[1734376299866,2.2723,219.96,219.9,2.2729]
[1734376300170,3.04,219.99,219.9,2.2729]
[1734376300871,14.12448771,219.99,219.9,2.2729]
[1734376301066,3.04,219.99,219.9,2.2729]
[1734376301471,2.2724,219.95,219.9,2.2729]
[1734376302165,2.2725,219.94,219.9,2.2729]
[1734376302366,11.08489769,219.98,219.88,1.5542]
[1734376302773,2.2724,219.95,219.88,1.5542]
[1734376303075,11.08489769,219.98,219.89,2.273]
[1734376304569,11.08489769,219.98,219.85,2.2733]
[1734376304876,13.08105729,219.96,219.81,13.08105729]
[1734376305075,13.08105729,219.96,219.81,14.55175729]
[1734376305076,2.2731,219.89,219.81,14.55175729]
[1734376305273,17.94005114,219.95,219.83,5.56895798]
[1734376305480,11.08489769,219.95,219.83,5.56895798]
[1734376305677,11.08489769,219.95,219.84,13.08105729]
[1734376305873,8.60513765,219.99,219.87,13.08105729]
[1734376306080,3.04,219.99,219.87,13.08105729]
[1734376306277,3.04,219.99,219.89,2.273]
[1734376306473,20.97401451,219.99,219.89,2.273]
[1734376306678,2.2725,219.95,219.91,2.2727]
[1734376306881,3.04,219.99,219.87,13.08105729]
[1734376307373,14.11952779,219.99,219.87,13.08105729]
[1734376307572,3.04,219.99,219.87,13.08105729]
[1734376307775,3.04,219.99,219.87,14.63415729]
[1734376309382,3.04,219.99,219.9,13.08105729]
[1734376309681,3.04,219.99,219.91,1.55]
[1734376309878,14.12155238,220.03,219.94,2.2725]
[1734376310679,2.2721,219.99,219.94,2.2725]
[1734376311079,2.2721,219.99,219.91,3.0725]
[1734376311080,2.2721,219.99,219.95,2.2723]
[1734376311785,2.2721,219.98,219.93,2.2725]
[1734376311986,2.2721,219.98,219.91,3.0725]
[1734376312285,2.2721,219.98,219.93,2.2725]
[1734376312489,2.2721,219.98,219.91,3.0725]
[1734376313483,14.12155238,220.03,219.91,3.0725]
[1734376313682,13.08105729,220.01,219.91,3.0725]
[1734376313890,13.08105729,220.01,219.87,14.63415729]
[1734376313891,11.08155238,220.0,219.87,14.63415729]
[1734376314790,11.08155238,220.0,219.89,2.273]
[1734376315286,2.2726,219.94,219.89,2.273]
[1734376315486,2.2726,219.94,219.9,2.2729]
[1734376315686,2.2723,219.96,219.87,14.63415729]
[1734376315889,11.08155238,220.0,219.87,14.63415729]
[1734376316091,13.08105729,220.01,219.87,14.63415729]
[1734376316285,2.2725,219.95,219.9,2.2728]
[1734376316785,2.2725,219.95,219.91,2.2728]
[1734376318893,2.2724,219.96,219.91,2.2728]
[1734376319291,2.2724,219.96,219.87,14.63415729]
[1734376319494,3.04,219.99,219.87,14.63415729]
[1734376319495,2.2722,219.97,219.93,2.2726]
[1734376320389,8.38195747,220.03,219.94,8.38195747]
[1734376320595,8.38195747,220.03,219.96,8.38195747]
[1734376320596,17.93501611,220.03,219.96,8.38195747]
[1734376320792,11.42195747,220.04,219.98,8.38195747]
[1734376320793,11.08248312,220.02,219.98,8.38195747]
[1734376320990,11.42195747,220.04,219.98,8.38195747]
[1734376320991,2.2718,220.01,219.98,8.38195747]
[1734376321598,2.2718,220.01,219.98,10.65405747]
[1734376322189,2.2718,220.01,219.98,2.2721]
[1734376322491,5.43445323,220.05,219.94,13.09164036]
[1734376322492,2.2716,220.04,219.94,13.09164036]
[1734376322701,2.2716,220.04,219.95,4.5692]
[1734376322993,13.09164036,220.08,219.95,4.5692]
[1734376322994,2.2716,220.03,219.99,2.2719]
[1734376323591,2.2719,220.0,219.96,2.2722]
[1734376323789,11.07929753,220.07,219.95,3.0033]
[1734376323790,13.09164036,220.05,219.95,3.0033]
[1734376324091,16.52263505,220.07,219.84,1.5011]
[1734376324092,13.09164036,219.99,219.84,1.5011]
[1734376324292,13.09164036,219.99,219.9,2.2729]
[1734376325098,11.08119286,219.98,219.9,2.2729]
[1734376325396,2.2724,219.95,219.9,2.2729]
[1734376326294,2.2724,219.95,219.85,17.72614036]
[1734376326596,2.2724,219.95,219.91,2.2728]
[1734376327190,2.2725,219.94,219.89,2.273]
[1734376327488,16.13164036,219.99,219.89,2.273]
[1734376327689,11.08152423,219.98,219.89,2.273]
[1734376327889,11.08152423,219.98,219.85,14.68614036]
[1734376327890,2.2726,219.93,219.85,14.68614036]
[1734376328090,2.2726,219.93,219.88,2.2731]
[1734376328592,2.2726,219.93,219.78,13.09164036]
[1734376328593,13.09164036,219.89,219.62,9.49916897]
[1734376328793,13.09164036,219.89,219.59,21.86012884]
[1734376328794,13.09164036,219.83,219.59,21.86012884]
[1734376328994,3.04,219.82,219.6,0.83586279]
[1734376329190,3.04,219.81,219.7,13.09164036]
[1734376329397,3.04,219.83,219.71,2.9819]
[1734376329597,3.04,219.82,219.71,2.9819]
[1734376329895,2.274,219.8,219.74,2.2746]
[1734376330290,3.04,219.82,219.75,2.2745]
[1734376330490,3.04,219.82,219.73,5.36056831]
[1734376332194,5.3138,219.82,219.75,2.2744]
[1734376332399,3.04,219.86,219.73,5.36056831]
[1734376332804,3.04,219.86,219.75,13.09164036]
[1734376333097,3.04,219.86,219.75,16.13164036]
[1734376333294,13.09164036,219.91,219.78,13.09164036]
[1734376333492,3.04,219.9,219.79,1.548]
[1734376333893,3.04,219.9,219.8,1.6029]
[1734376334095,3.04,219.9,219.8,3.1923]
[1734376334400,2.2731,219.88,219.82,2.2737]
[1734376338897,2.273,219.9,219.81,13.09164036]
[1734376339200,3.04,219.94,219.81,13.09164036]
[1734376339699,8.43300872,219.94,219.81,13.09164036]
[1734376339901,3.04,219.94,219.86,2.2733]
[1734376340098,13.09164036,219.97,219.84,13.09164036]
[1734376340301,3.04,219.96,219.87,13.09164036]
[1734376340497,2.2724,219.95,219.9,2.2729]
[1734376341999,3.04,220.0,219.9,13.09164036]
[1734376343498,3.04,220.0,219.89,3.0467]
[1734376345508,16.13164036,220.0,219.89,5.3196]
[1734376346213,16.13164036,220.0,219.89,3.0467]
[1734376346805,2.2726,219.93,219.89,5.3197]
[1734376347206,16.13164036,220.0,219.89,5.3197]
[1734376347406,2.2725,219.94,219.89,5.3197]
[1734376347807,16.13164036,220.0,219.89,3.0467]
[1734376348002,2.2724,219.96,219.89,3.0467]
[1734376349006,2.2724,219.96,219.91,2.2727]
[1734376349207,2.2725,219.94,219.89,3.0467]
[1734376349514,16.13164036,220.0,219.89,3.0467]
[1734376349703,11.04691548,219.99,219.89,3.0467]
[1734376349905,2.2727,219.92,219.89,3.0467]
[1734376350211,11.04691548,219.99,219.89,3.0467]
[1734376350513,11.04691548,219.99,219.86,2.2733]
[1734376350514,2.2728,219.91,219.86,2.2733]
[1734376350711,3.04,219.94,219.86,2.2733]
[1734376352012,2.273,219.89,219.86,2.2733]
[1734376353610,16.13164036,219.94,219.83,2.2736]
[1734376354016,11.0485789,219.93,219.83,2.2736]
[1734376354515,16.13164036,219.94,219.84,2.2735]
[1734376354811,3.04,219.94,219.81,13.09164036]
[1734376355915,2.2731,219.89,219.85,2.2734]
[1734376356911,2.2731,219.88,219.81,13.09164036]
[1734376357113,2.2731,219.88,219.84,2.2735]
[1734376358010,2.2731,219.88,219.81,13.09164036]
[1734376358209,3.04,219.94,219.82,2.2737]
[1734376358210,2.2732,219.87,219.82,2.2737]
[1734376358613,2.2732,219.87,219.81,13.09164036]
[1734376359515,2.2732,219.87,219.83,2.2736]
[1734376360016,2.2732,219.87,219.81,13.09164036]
[1734376360214,2.2732,219.87,219.82,2.2737]
[1734376360516,2.2732,219.87,219.79,4.6131]
[1734376360517,13.09164036,219.91,219.79,4.6131]
[1734376360721,13.09164036,219.88,219.79,3.0578]
[1734376360918,13.09164036,219.85,219.73,20.00150867]
[1734376361221,16.13164036,219.85,219.73,25.31750867]
[1734376361418,16.13164036,219.85,219.73,12.22586831]
[1734376361628,16.13164036,219.85,219.73,9.95116831]
[1734376361920,2.2744,219.77,219.73,9.95116831]
[1734376362121,13.09164036,219.82,219.73,8.40186831]
[1734376362320,2.2746,219.74,219.73,3.0413]
[1734376362923,2.2745,219.75,219.73,3.0413]
[1734376363325,16.13164036,219.79,219.67,13.09164036]
[1734376363522,2.2749,219.71,219.67,13.09164036]
[1734376363717,3.04,219.78,219.67,13.09164036]
[1734376364118,2.2748,219.72,219.67,13.09164036]
[1734376365425,2.275,219.7,219.66,1.5493]
[1734376365935,2.2751,219.69,219.66,1.5493]
[1734376366733,2.275,219.7,219.66,1.5493]
[1734376367134,3.04,219.78,219.66,3.8247]
[1734376367135,2.2749,219.72,219.66,3.8247]
[1734376367432,3.04,219.78,219.66,1.5493]
[1734376367832,13.09164036,219.76,219.58,1.5274]
[1734376368031,13.09164036,219.76,219.63,5.47649704]
[1734376368032,13.09164036,219.72,219.63,5.47649704]
[1734376368333,2.2754,219.66,219.63,5.47649704]
[1734376368724,2.2754,219.66,219.58,1.5274]
[1734376369133,3.04,219.71,219.59,2.276]
[1734376369439,2.2756,219.65,219.59,2.276]
[1734376370733,3.04,219.71,219.61,2.2758]
[1734376370939,3.04,219.72,219.61,2.2758]
[1734376371335,2.2753,219.68,219.61,2.2758]
[1734376371537,13.09164036,219.76,219.6,18.61688065]
[1734376371733,3.04,219.75,219.65,2.2755]
[1734376372238,3.04,219.75,219.62,2.2758]
[1734376372636,3.04,219.75,219.6,18.61688065]
[1734376372637,2.2753,219.67,219.6,18.61688065]
[1734376372837,2.2753,219.67,219.61,2.2758]
[1734376373642,2.2753,219.67,219.6,18.61688065]
[1734376373831,2.2753,219.67,219.62,2.2758]
[1734376374036,2.2753,219.67,219.6,18.61688065]
[1734376374237,2.2753,219.67,219.6,20.89278065]
[1734376374437,2.2751,219.69,219.6,20.89278065]
[1734376374637,13.09164036,219.72,219.6,18.61688065]
[1734376374941,2.2749,219.72,219.62,2.2758]
[1734376375144,3.04,219.75,219.62,2.2758]
[1734376375346,3.04,219.75,219.64,2.2756]
[1734376375540,2.2751,219.7,219.6,18.61688065]
[1734376375842,3.04,219.75,219.6,18.61688065]
[1734376376033,2.2753,219.68,219.63,2.2757]
[1734376376438,78.09428017,219.81,219.66,13.09164036]
[1734376376738,94.22592053,219.81,219.67,3.0116]
[1734376377139,2.2746,219.75,219.69,2.2751]
[1734376377438,13.09164036,219.78,219.69,2.2751]
[1734376377640,2.2747,219.74,219.69,2.2751]
[1734376378044,13.09164036,219.75,219.6,5.52524029]
[1734376378342,13.09164036,219.72,219.61,1.4879]
[1734376378543,3.04,219.71,219.61,1.4879]
[1734376378943,2.2753,219.68,219.63,2.2757]
[1734376379343,3.04,219.71,219.63,2.2757]
[1734376379344,2.2751,219.69,219.63,2.2757]
[1734376379643,3.04,219.71,219.63,2.2757]
[1734376379946,2.2753,219.68,219.63,2.2757]
[1734376380345,3.04,219.71,219.63,2.2757]
[1734376380537,2.2753,219.67,219.63,2.2757]
[1734376381643,2.2756,219.67,219.63,2.2759]
[1734376383450,3.04,219.71,219.61,1.4879]
[1734376383643,13.09164036,219.69,219.61,1.4879]
[1734376384449,3.04,219.71,219.57,1.514]
[1734376384450,13.09164036,219.66,219.57,1.514]
[1734376384656,3.04,219.65,219.57,1.514]
[1734376384843,2.2763,219.6,219.57,1.514]
[1734376385047,13.09164036,219.58,219.44,44.0]
[1734376385242,16.13164036,219.58,219.45,4.6336]
[1734376385847,2.2771,219.52,219.49,5.32948636]
[1734376386147,8.4171307,219.51,219.49,5.32948636]
[1734376386350,11.4571307,219.51,219.44,44.0]
[1734376386549,8.4171307,219.45,219.44,44.0]
[1734376386948,3.04,219.51,219.44,44.0]
[1734376387149,10.6949307,219.45,219.44,44.0]
[1734376387949,2.2778,219.45,219.44,44.0]
[1734376388143,5.3178,219.45,219.44,44.0]
[1734376389548,13.16385198,219.46,219.44,44.0]
[1734376389746,16.20385198,219.46,219.44,44.0]
[1734376390151,3.04,219.47,219.44,44.0]
[1734376391650,1.4967,219.55,219.44,44.0]
[1734376391651,5.3173,219.5,219.44,44.0]
[1734376391850,13.16385198,219.52,219.44,44.0]
[1734376392048,3.04,219.52,219.44,44.0]
[1734376392745,5.3172,219.52,219.46,2.2777]
[1734376393154,3.04,219.52,219.46,2.2777]
[1734376393456,3.04,219.52,219.44,44.0]
[1734376393655,2.2772,219.51,219.45,2.2778]
[1734376394160,2.2769,219.54,219.44,44.0]
[1734376394545,2.2769,219.54,219.45,3.04]
[1734376394752,16.20385198,219.58,219.48,2.2774]
[1734376394753,2.2768,219.55,219.48,2.2774]
[1734376394948,16.20385198,219.58,219.48,2.2774]
[1734376395254,16.20385198,219.58,219.49,2.2774]
[1734376395650,13.16385198,219.55,219.46,10.08272333]
[1734376395856,13.16385198,219.55,219.46,12.36032333]
[1734376396053,13.16385198,219.52,219.46,4.554]
[1734376396968,2.2774,219.5,219.46,4.554]
[1734376398960,13.16385198,219.52,219.46,4.554]
[1734376399159,2.2774,219.49,219.46,4.554]
[1734376399460,16.20385198,219.49,219.44,44.0]
[1734376399756,13.16385198,219.46,219.44,44.0]
[1734376400160,2.2778,219.45,219.44,44.0]
[1734376403765,2.2784,219.39,219.36,4.5516]
[1734376403958,3.04,219.49,219.36,4.5516]
[1734376403959,13.16385198,219.42,219.36,1.4862]
[1734376404164,13.16385198,219.45,219.36,1.4862]
[1734376404358,2.2781,219.42,219.38,2.2784]
[1734376404657,13.16385198,219.45,219.38,2.2784]
[1734376405062,13.16385198,219.45,219.36,1.4862]
[1734376405256,3.04,219.49,219.36,1.4862]
[1734376405257,13.16385198,219.48,219.36,1.4862]
[1734376405460,2.2777,219.47,219.36,1.4862]
[1734376405660,13.16385198,219.48,219.41,2.2781]
[1734376406058,2.2777,219.46,219.41,2.2781]
[1734376406363,13.16385198,219.48,219.36,1.4862]
[1734376406565,13.16385198,219.45,219.38,2.2785]
[1734376407462,13.16385198,219.45,219.36,1.4862]
[1734376407862,2.2782,219.42,219.37,2.2786]
[1734376408262,13.16385198,219.45,219.36,1.4862]
[1734376408665,13.16385198,219.48,219.36,1.4862]
[1734376408958,13.16385198,219.48,219.36,3.7649]
[1734376409365,13.16385198,219.48,219.36,1.4862]
[1734376409765,1.5082,219.55,219.37,13.16385198]
[1734376409965,13.16385198,219.57,219.43,13.16385198]
[1734376410161,16.20385198,219.57,219.44,1.4839]
[1734376410366,2.2772,219.52,219.46,2.2776]
[1734376410564,16.20385198,219.57,219.46,2.2776]
[1734376411068,21.62976622,219.57,219.46,2.2776]
[1734376411365,2.2773,219.51,219.46,2.2776]
[1734376411564,21.62976622,219.57,219.45,1.6058]
[1734376411565,3.04,219.56,219.48,2.2775]
[1734376411771,3.04,219.56,219.45,1.6058]
[1734376412268,1.5848,219.66,219.48,2.2775]
[1734376412269,3.04,219.58,219.48,2.2775]
[1734376412464,13.16385198,219.6,219.47,1.4949]
[1734376412465,3.04,219.59,219.47,1.4949]
[1734376412667,2.2769,219.55,219.47,1.4949]
[1734376413164,3.04,219.59,219.47,1.4949]